lending/lending_fUSD_20251218
["ID","MTS","AMOUNT","RATE_DAILY","PERIOD"]
[398991786,1766047123568,-500.0,0.00041095,120]
[398991787,1766047123629,-500.0,0.00041095,120]
[398991788,1766047123685,-500.0,0.00041095,120]
[398991789,1766047123739,-500.0,0.00041095,120]
[398991790,1766047123793,-225.2,0.00041095,120]
[398991791,1766047123845,-500.0,0.00041095,120]
[398991792,1766047123898,-500.0,0.00041095,120]
[398991793,1766047123952,-500.0,0.00041095,120]
[398991794,1766047124003,-500.0,0.00041095,120]
[398991795,1766047124056,-500.0,0.00041095,120]
[398991796,1766047124111,-527.34,0.00041095,120]
[398991797,1766047124165,-500.0,0.00041095,120]
[398991798,1766047124221,-500.0,0.00041095,120]
[398991799,1766047124278,-500.0,0.00041095,120]
[398991800,1766047124337,-500.0,0.00041095,120]
[398991801,1766047124397,-500.0,0.00041095,120]
[398991802,1766047124456,-500.0,0.00041095,120]
[398991803,1766047124524,-500.0,0.00041095,120]
[398991804,1766047124585,-500.0,0.00041095,120]
[398991805,1766047124641,-500.0,0.00041095,120]
[398991806,1766047124698,-500.0,0.00041095,120]
[398991807,1766047124753,-500.0,0.00041095,120]
[398991808,1766047124811,-478.49,0.00041095,120]
[398991809,1766047124870,-500.0,0.00041095,120]
[398991810,1766047124928,-522.97,0.00041095,120]
[398991811,1766047124986,-246.25,0.00041095,120]
[398991812,1766047125049,-500.0,0.00041095,120]
[398991813,1766047125108,-500.0,0.00041095,120]
[398991814,1766047125164,-500.0,0.00041095,120]
[398991815,1766047125220,-580.03,0.00041095,120]
[398991816,1766047125276,-500.0,0.00041095,120]
[398991817,1766047125331,-500.0,0.00041095,120]
[398991818,1766047125387,-500.0,0.00041095,120]
[398991819,1766047125446,-500.0,0.00041095,120]
[398991820,1766047125507,-500.0,0.00041095,120]
[398991821,1766047125573,-500.0,0.00041095,120]
[398991822,1766047125635,-309.1,0.00041095,120]
[398991823,1766047125698,-500.0,0.00041095,120]
[398991824,1766047125760,-500.0,0.00041095,120]
[398991825,1766047125820,-500.0,0.00041095,120]
[398991826,1766047125877,-500.0,0.00041095,120]
[398991827,1766047125933,-557.73,0.00041095,120]
[398991828,1766047125987,-500.0,0.00041095,120]
[398991829,1766047126038,-500.0,0.00041095,120]
[398991830,1766047126091,-500.0,0.00041095,120]
[398991831,1766047126148,-500.0,0.00041095,120]
[398991832,1766047126206,-500.0,0.00041095,120]
[398991833,1766047126267,-500.0,0.00041095,120]
[398991834,1766047126331,-500.0,0.00041095,120]
[398991835,1766047126409,-500.0,0.00041095,120]
[398991836,1766047126484,-221.05,0.00041095,120]
[398991837,1766047126548,-500.0,0.00041095,120]
[398991838,1766047126607,-259.21,0.00041095,120]
[398991839,1766047126667,-500.0,0.00041095,120]
[398991840,1766047126729,-500.0,0.00041095,120]
[398991841,1766047126787,-500.0,0.00041095,120]
[398991842,1766047126845,-500.0,0.00041095,120]
[398991843,1766047126901,-586.94,0.00041095,120]
[398991844,1766047126958,-500.0,0.00041095,120]
[398991845,1766047127016,-500.0,0.00041095,120]
[398991846,1766047127080,-500.0,0.00041095,120]
[398991847,1766047127142,-500.0,0.00041095,120]
[398991848,1766047127203,-500.0,0.00041095,120]
[398991849,1766047127263,-366.59,0.00041095,120]
[398991850,1766047127322,-500.0,0.00041095,120]
[398991851,1766047127384,-646.72,0.00041095,120]
[398991852,1766047127448,-624.98,0.00041095,120]
[398991853,1766047127511,-500.0,0.00041095,120]
[398991854,1766047127585,-500.0,0.00041095,120]
[398991855,1766047127661,-500.0,0.00041095,120]
[398991856,1766047127733,-500.0,0.00041095,120]
[398991857,1766047127795,-500.0,0.00041095,120]
[398991858,1766047127853,-500.0,0.00041095,120]
[398991859,1766047127911,-500.0,0.00041095,120]
[398991860,1766047127971,-500.0,0.00041095,120]
[398991861,1766047128035,-500.0,0.00041095,120]
[398991862,1766047128099,-500.0,0.00041095,120]
[398991863,1766047128165,-500.0,0.00041095,120]
[398991864,1766047128231,-32.42570831,0.00041095,120]
[398991865,1766047135621,-728.91649147,0.000162,5]
[398991866,1766047135632,-280.2678667,0.000162,5]
[398991867,1766047135644,-8790.80496112,0.000162,5]
[398991868,1766047135656,-10091.64670418,0.000162,5]
[398991869,1766047135665,-300.0,0.00018192,2]
[398991870,1766047135675,-1000.0,0.0001889,2]
[398991871,1766047135684,-791.40789588,0.00018989,2]
[398991872,1766047135694,-500.0,0.00018989,2]
[398991873,1766047135703,-363.70838025,0.00018989,2]
[398991874,1766047135712,-955.70457197,0.00019551,2]
[398991875,1766047135722,-288.9,0.00019561,2]
[398991876,1766047135731,-1781.2271732,0.0001993,2]
[398991877,1766047135741,-500.0,0.00019949,2]
[398991878,1766047135750,-500.0,0.00019949,2]
[398991879,1766047135759,-500.0,0.00019949,2]
[398991880,1766047135768,-4729.51858954,0.0001995,15]
[398991881,1766047135791,-373.38091558,0.0001995,15]
[398991882,1766047135803,-366.61466326,0.0001995,15]
[398991883,1766047135815,-2561.99998,0.0001995,15]
[398991884,1766047135827,-555.4,0.0001995,15]
[398991885,1766047135839,-8168.85785769,0.0001995,15]
[398991886,1766047135848,-167.26986664,0.0001995,2]
[398991887,1766047135859,-2500.0,0.00020011,2]
[398991888,1766047135869,-73.30905423,0.00020054,2]
[398991889,1766047135880,-94.69094577,0.00020054,2]
[398991890,1766047135889,-269.83,0.00020187,2]
[398991891,1766047135898,-256.0,0.00020279,2]
[398991892,1766047135908,-168.0,0.0002056,2]
[398991893,1766047135917,-1000.0,0.00020591,2]
[398991894,1766047135930,-166.45,0.00020603,2]
[398991895,1766047135939,-406.97,0.00020764,2]
[398991896,1766047135947,-200.0,0.00020871,2]
[398991897,1766047135957,-171.52553272,0.00020871,2]
[398991898,1766047135966,-4822.46,0.00020883,2]
[398991899,1766047135975,-168.0,0.00021375,2]
[398991900,1766047135984,-5000.0,0.00021918,2]
[398991901,1766047135993,-479.52989347,0.00021941,2]
[398991902,1766047136002,-150.0,0.00021941,2]
[398991903,1766047136011,-21613.60184257,0.00021942,2]
[398991904,1766047136022,-659.53743416,0.00021942,2]
[398991905,1766047136033,-3240.81234024,0.00021942,2]
[398991906,1766047136044,-758.95607811,0.00021942,2]
[398991907,1766047136056,-435.29,0.00021942,2]
[398991908,1766047136099,-259.084,0.00021942,2]
[398991909,1766047136111,-1243.86456691,0.00021942,2]
[398991910,1766047136122,-746.91,0.00021942,2]
[398991911,1766047136133,-304.57654823,0.00021942,2]
[398991912,1766047136144,-463408.13789886,0.00021942,2]
[398991913,1766047136255,-1975.26332505,0.00021942,2]
[398991914,1766047136290,-4999.9349905,0.00021942,2]
[398991915,1766047136314,-75457.93793635,0.00021942,2]
[398991951,1766047831642,-298.1,0.00013699,2]
[398991952,1766047831653,-263.0,0.00013699,2]
[398991953,1766047831664,-284.86682596,0.00015068,2]
[398991954,1766047831696,-15.13317404,0.00015068,2]
[398991955,1766047831710,-482.86682586,0.00018766,2]
[398991956,1766047831721,-310.5,0.00018766,2]
[398991957,1766047831749,-406.63317414,0.00018766,2]
[398991958,1766047831758,-271.82344798,0.00018766,2]
[398991959,1766047831804,-28.17655202,0.00018766,2]
[398991960,1766047831813,-200.0,0.00018767,2]
[398991961,1766047831822,-207.4,0.00018767,2]
[398991962,1766047831832,-215.0738,0.00018767,2]
[398991963,1766047831842,-223.0315306,0.00018767,2]
[398991964,1766047831852,-231.28369723,0.00018767,2]
[398991965,1766047831861,-239.84119403,0.00018767,2]
[398991966,1766047831871,-248.71531821,0.00018767,2]
[398991967,1766047831881,-257.91778498,0.00018767,2]
[398991968,1766047831890,-189.02205088,0.00018767,2]
[398991969,1766047831899,-479.841468,0.00019252,2]
[398991970,1766047831909,-177.95,0.00019349,2]
[398991972,1766047831919,-300.0,0.00020028,2]
[398991974,1766047831928,-150.0,0.0002004,2]
[398991976,1766047831937,-4222.49,0.0002004,2]
[398991978,1766047831947,-298.1,0.00020187,2]
[398991980,1766047831955,-420.0,0.0002046,2]
[398991982,1766047831964,-166.66,0.00020469,2]
[398991984,1766047831973,-956.0,0.00020472,2]
[398991986,1766047831982,-200.0,0.00020473,2]
[398991988,1766047831991,-500.0,0.00020473,2]
[398991990,1766047832000,-523.73994121,0.00020473,2]
[398991992,1766047832009,-201.66042456,0.00020473,2]
[398991994,1766047832018,-201.44195328,0.00020473,2]
[398991996,1766047832027,-500.0,0.00020473,2]
[398991998,1766047832036,-500.0,0.00020473,2]
[398992000,1766047832044,-500.0,0.00020473,2]
[398992002,1766047832054,-500.0,0.00020473,2]
[398992004,1766047832063,-500.0,0.00020473,2]
[398992006,1766047832072,-151.0,0.00020473,2]
[398992008,1766047832081,-151.0,0.00020473,2]
[398992010,1766047832090,-151.0,0.00020473,2]
[398992012,1766047832099,-151.0,0.00020473,2]
[398992014,1766047832107,-151.0,0.00020473,2]
[398992016,1766047832116,-171.29995039,0.00020473,2]
[398992018,1766047832126,-18713.05,0.00020486,2]
[398992020,1766047832135,-1680.0,0.00020559,2]
[398992022,1766047832144,-168.0,0.00020754,2]
[398992024,1766047832153,-166.66,0.000209,2]
[398992026,1766047832162,-166.66,0.00021331,2]
[398992028,1766047832170,-637.13638131,0.00021503,2]
[398992030,1766047832179,-172.2419578,0.00021553,2]
[398992032,1766047832188,-643.136,0.00021553,2]
[398992034,1766047832197,-1885.37364517,0.00021642,2]
[398992036,1766047832206,-11552.9749797,0.00021664,2]
[398992038,1766047832215,-500.0,0.00021716,2]
[398992040,1766047832223,-500.0,0.00021716,2]
[398992042,1766047832232,-500.0,0.00021716,2]
[398992044,1766047832243,-500.0,0.00021716,2]
[398992046,1766047832252,-500.0,0.00021716,2]
[398992048,1766047832261,-500.0,0.00021716,2]
[398992050,1766047832270,-500.0,0.00021716,2]
[398992052,1766047832279,-500.0,0.00021716,2]
[398992054,1766047832288,-500.0,0.00021716,2]
[398992056,1766047832297,-500.0,0.00021716,2]
[398992058,1766047832306,-500.0,0.00021716,2]
[398992060,1766047832315,-500.0,0.00021716,2]
[398992062,1766047832324,-500.0,0.00021716,2]
[398992064,1766047832333,-612.77333191,0.00021716,2]
[398992066,1766047832344,-500.0,0.00021716,2]
[398992068,1766047832354,-500.0,0.00021716,2]
[398992070,1766047832364,-500.0,0.00021716,2]
[398992072,1766047832374,-500.0,0.00021716,2]
[398992074,1766047832383,-500.0,0.00021716,2]
[398992076,1766047832393,-500.0,0.00021716,2]
[398992078,1766047832402,-500.0,0.00021716,2]
[398992080,1766047832411,-24188.81302722,0.00021717,2]
[398992626,1766047837798,-881.42399107,0.00021664,2]
[398992847,1766047840212,-1076.05339144,0.00021664,2]
[398992849,1766047840223,-1076.0,0.00021664,2]
[398992851,1766047840236,-4513.85326749,0.00021664,2]
[398992853,1766047840246,-4552.81247522,0.00021717,2]
[398992855,1766047840257,-14069.87089215,0.00021717,2]
[398992858,1766047840267,-644.0,0.00021717,2]
[398992860,1766047840284,-581.4708844,0.00021717,2]
[398992992,1766047842815,-196385.77146206,0.00021717,2]
[398992993,1766047843078,-895.32391637,0.00021717,2]
[398992996,1766047845792,-3261.11353365,0.00021717,2]
[398992997,1766047845845,-1352.0,0.00021717,2]
[398992998,1766047845899,-269.99999995,0.00021717,2]
[398992999,1766047846115,-630.21210057,0.00021717,2]
[398993000,1766047846126,-262.9,0.00021717,2]
[398993102,1766048467714,3500.0,0.00021,30]
[398993179,1766049031900,-200.0,0.00019703,2]
[398993180,1766049031911,-207.4,0.00019703,2]
[398993181,1766049031919,-167.2,0.00019703,2]
[398993182,1766049031930,-47.8738,0.00019703,2]
[398993183,1766049031939,-223.0315306,0.00019703,2]
[398993184,1766049031948,-373.36356646,0.00019703,2]
[398993185,1766049031957,-255.0,0.00019999,2]
[398993186,1766049031966,-300.0,0.00019999,2]
[398993187,1766049031975,-1200.0,0.00019999,2]
[398993188,1766049031983,-300.0,0.00019999,2]
[398993194,1766049031992,-693.18104354,0.0002,2]
[398993195,1766049032422,-502.88313328,0.0002,2]
[398993196,1766049032433,-2803.93582318,0.0002,2]
[398993197,1766049032444,-2467.12,0.00020989,2]
[398993198,1766049032453,-151.55,0.00021282,2]
[398993199,1766049032461,-152.39,0.00021282,2]
[398993200,1766049032471,-150.17,0.00021282,2]
[398993201,1766049032481,-150.1,0.00021282,2]
[398993202,1766049032490,-256.0,0.00021303,2]
[398993203,1766049032499,-595.78737181,0.00021503,2]
[398993204,1766049032509,-1202.48891895,0.00021517,2]
[398993205,1766049032518,-2294.40274623,0.00021517,2]
[398993206,1766049032527,-177.01439783,0.00021517,2]
[398993207,1766049032536,-224.36140418,0.00021616,2]
[398993208,1766049032545,-493.95527518,0.00021616,2]
[398993209,1766049032554,-500.0,0.00021616,2]
[398993210,1766049032563,-500.0,0.00021616,2]
[398993211,1766049032572,-179.19703688,0.00021616,2]
[398993212,1766049032581,-1000.0,0.00021617,2]
[398993213,1766049032589,-2022.21446562,0.00021617,2]
[398993214,1766049032600,-8476.53333438,0.00021617,2]
[398993215,1766049032609,-6142.15024454,0.00021617,2]
[398993216,1766049032620,-458.44747329,0.00021617,2]
[398993217,1766049032631,-2493.21781416,0.00021617,2]
[398993221,1766049038067,-1180.88587664,0.00021617,2]
[398993222,1766049038122,-306.23050185,0.00021617,2]
[398993268,1766049041361,-25836.69674415,0.00021617,2]
[398993269,1766049041373,-4133.84343981,0.00021617,2]
[398993270,1766049041387,-3800.79606342,0.00021617,2]
[398993271,1766049041400,-836826.51130536,0.00021617,2]
[398993272,1766049041413,-2418.0,0.00021617,2]
[398993273,1766049041425,-568.49726862,0.00021617,2]
[398993275,1766049041438,-3834.72326816,0.00021617,2]
[398993277,1766049041448,-19835.76848417,0.00021617,2]
[398993281,1766049041482,-7695.48428666,0.00021617,2]
[398993283,1766049041494,-5505.3548237,0.00021617,2]
[398993285,1766049041506,-5281.31155515,0.00021617,2]
[398993300,1766049043458,-333.08995956,0.00021617,2]
[398993403,1766049046055,-50095.86079076,0.00021617,2]
[398993404,1766049046064,-235.8572,0.00021617,2]
[398993405,1766049046074,-4762.8268957,0.00021626,2]
[398993406,1766049046085,-219.61529698,0.00021627,2]
[398993407,1766049046095,-514.509,0.00021662,2]
[398993408,1766049046104,-223.0720094,0.00021662,2]
[398993409,1766049046114,-500.0,0.00021716,2]
[398993410,1766049046123,-500.0,0.00021716,2]
[398993411,1766049046133,-500.0,0.00021716,2]
[398993412,1766049046142,-500.0,0.00021716,2]
[398993413,1766049046151,-511.95166241,0.00021716,2]
[398993414,1766049046162,-299.99,0.00021716,7]
[398993415,1766049046171,-500.0,0.00021716,2]
[398993416,1766049046181,-530.0,0.00021716,2]
[398993417,1766049046190,-166.66,0.00021762,2]
[398993418,1766049046200,-200.0,0.00021766,2]
[398993419,1766049046209,-200.0,0.00021767,2]
[398993420,1766049046219,-180.0,0.00021777,2]
[398993421,1766049046228,-308.0,0.00021817,2]
[398993422,1766049046238,-500.0,0.00021817,2]
[398993423,1766049046248,-500.0,0.00021817,2]
[398993424,1766049046258,-500.0,0.00021817,2]
[398993425,1766049046268,-5000.0,0.00021918,2]
[398993426,1766049046277,-241.97573819,0.00022,2]
[398993427,1766049046287,-166.66,0.00022193,30]
[398993428,1766049046296,-308.0,0.00022203,2]
[398993429,1766049046308,-308.0,0.00022478,2]
[398993430,1766049046318,-166.66,0.00022624,30]
[398993431,1766049046328,-232.91,0.00022626,2]
[398993432,1766049046338,-308.0,0.00022664,2]
[398993433,1766049046348,-308.0,0.00022748,2]
[398993434,1766049046360,-168.0,0.00022828,2]
[398993435,1766049046369,-151.0,0.00023,2]
[398993436,1766049046379,-151.0,0.00023,2]
[398993437,1766049046392,-308.0,0.00023039,2]
[398993438,1766049046401,-308.0,0.00023114,2]
[398993439,1766049046415,-1000.0,0.00023165,2]
[398993440,1766049046425,-308.0,0.00023461,2]
[398993442,1766049046435,-1202.48891893,0.00023681,2]
[398993444,1766049046444,-2294.40274618,0.00023681,2]
[398993445,1766049046454,-512.36945977,0.00024,2]
[398993446,1766049046464,-1062.730328,0.00024366,2]
[398993447,1766049046473,-1000.0,0.00024658,2]
[398993448,1766049046482,-409.39,0.00024658,30]
[398993449,1766049046492,-589.2,0.00024658,3]
[398993450,1766049046501,-455.4,0.00024658,2]
[398993451,1766049046510,-377.1,0.00024658,6]
[398993452,1766049046520,-484.8,0.00024658,6]
[398993453,1766049046529,-433.8,0.00024658,7]
[398993454,1766049046538,-479.7,0.00024658,6]
[398993455,1766049046547,-476.1,0.00024658,6]
[398993456,1766049046557,-511.41909704,0.000248,2]
[398993457,1766049046566,-600.0,0.00024899,2]
[398993458,1766049046575,-18025.9154893,0.000249,2]
[398993459,1766049046584,-237.1271882,0.00024977,2]
[398993460,1766049046594,-999.0,0.00024989,3]
[398993461,1766049046604,-151.0,0.00025,2]
[398993462,1766049046613,-151.0,0.00025,2]
[398993463,1766049046623,-4740.0,0.00025,10]
[398993464,1766049046632,-1000.0,0.00025739,2]
[398993465,1766049046642,-3379.85915424,0.00025805,2]
[398993466,1766049046652,-4333.31689705,0.00025815,2]
[398993467,1766049046664,-826.049999,0.00025815,2]
[398993468,1766049046675,-3547.43151558,0.00025815,2]
[398993489,1766050238107,-2424.24174609,0.000162,5]
[398993490,1766050238161,-2575.75825391,0.000162,5]
[398993491,1766050238171,-300.0,0.00020915,2]
[398993492,1766050238180,-200.0,0.00020916,2]
[398993493,1766050238190,-207.4,0.00020916,2]
[398993494,1766050238200,-215.0738,0.00020916,2]
[398993495,1766050238209,-223.0315306,0.00020916,2]
[398993496,1766050238218,-231.28369723,0.00020916,2]
[398993497,1766050238227,-239.84119403,0.00020916,2]
[398993498,1766050238236,-248.71531821,0.00020916,2]
[398993499,1766050238246,-186.4235434,0.00020916,2]
[398993500,1766050238255,-411.607,0.00021086,2]
[398993501,1766050238265,-235.13355365,0.00021317,2]
[398993502,1766050238275,-1000.0,0.000214,2]
[398993503,1766050238285,-2500.0,0.00021417,2]
[398993504,1766050238294,-17368.3906737,0.00021417,2]
[398993505,1766050238306,-300.6,0.00021417,2]
[398993506,1766050238318,-781.96408187,0.00021417,2]
[398993507,1766050238330,-2751.20132915,0.00021417,2]
[398993508,1766050238341,-327.49999154,0.00021417,2]
[398993509,1766050238352,-1553.69,0.00021417,2]
[398993512,1766050240269,-2226.7060344,0.00021417,2]
[398993513,1766050240320,-449.53015002,0.00021417,2]
[398993514,1766050240332,-6176.93849631,0.00021417,2]
[398993515,1766050240343,-662862.76041146,0.00021417,2]
[398993516,1766050240531,-566.24219699,0.00021417,2]
[398993517,1766050240543,-402.48792587,0.00021417,2]
[398993533,1766050243209,-1195.27483956,0.00021417,2]
[398993534,1766050243366,-869.09998808,0.00021417,2]
[398993542,1766050247163,-1086.88479984,0.00021417,2]
[398993543,1766050247176,-259.90101775,0.00021417,2]
[398993544,1766050247190,-412.22585459,0.00021417,2]
[398993545,1766050247208,-1597.44114134,0.00021417,2]
[398993546,1766050247221,-1349.460001,0.00021417,2]
[398993548,1766050748263,347.5,0.00023,120]
[398993643,1766051432221,-300.08,0.00013699,2]
[398993644,1766051432230,-263.0,0.00013699,2]
[398993645,1766051432240,-151.0,0.00018071,2]
[398993646,1766051432249,-300.08,0.00020187,2]
[398993647,1766051432258,-295.52764366,0.00020815,2]
[398993648,1766051432271,-204.47235634,0.00020815,2]
[398993650,1766051432281,-336.20580245,0.00021216,2]
[398993652,1766051432291,-336.20580245,0.0002126,2]
[398993654,1766051432302,-1835.52219698,0.00021304,2]
[398993655,1766051432310,-205.74185947,0.00021304,2]
[398993656,1766051432321,-336.20580245,0.00021304,2]
[398993657,1766051432330,-300.0,0.00021315,2]
[398993658,1766051432340,-1200.0,0.00021315,2]
[398993659,1766051432349,-199.44417986,0.00021316,2]
[398993660,1766051432361,-146.32451277,0.00021316,2]
[398993661,1766051432369,-237.60394043,0.00021316,2]
[398993662,1766051432380,-156.61297458,0.00021316,2]
[398993663,1766051432391,-1.8663272,0.00021316,2]
[398993664,1766051432402,-487.32768705,0.00021316,2]
[398993665,1766051432412,-500.0,0.00021316,2]
[398993666,1766051432420,-502.00287542,0.00021316,2]
[398993667,1766051432430,-500.0,0.00021316,2]
[398993668,1766051432438,-187.75900486,0.00021316,2]
[398993669,1766051432452,-312.24099514,0.00021316,2]
[398993670,1766051432462,-172.87157267,0.00021316,2]
[398993671,1766051432474,-327.12842733,0.00021316,2]
[398993672,1766051432485,-500.0,0.00021316,2]
[398993673,1766051432495,-317.73658678,0.00021316,2]
[398993674,1766051432504,-500.0,0.00021316,2]
[398993675,1766051432514,-500.0,0.00021316,2]
[398993676,1766051432525,-245.08427111,0.00021316,2]
[398993677,1766051432539,-254.91572889,0.00021316,2]
[398993679,1766051432547,-193.62628542,0.00021316,2]
[398993680,1766051432558,-306.37371458,0.00021316,2]
[398993681,1766051432568,-500.0,0.00021316,2]
[398993682,1766051432577,-20.7110209,0.00021316,2]
[398993683,1766051432590,-336.0405854,0.00021316,2]
[398993684,1766051432600,-500.0,0.00021316,2]
[398993685,1766051432610,-349.09124085,0.00021316,2]
[398993686,1766051432619,-500.0,0.00021316,2]
[398993687,1766051432628,-500.0,0.00021316,2]
[398993688,1766051432639,-354.53542904,0.00021316,2]
[398993689,1766051432651,-145.46457096,0.00021316,2]
[398993690,1766051432661,-500.0,0.00021316,2]
[398993691,1766051432670,-500.0,0.00021316,2]
[398993692,1766051432679,-500.0,0.00021316,2]
[398993693,1766051432689,-500.0,0.00021316,2]
[398993694,1766051432698,-500.0,0.00021316,2]
[398993695,1766051432708,-500.0,0.00021316,2]
[398993696,1766051432717,-500.0,0.00021316,2]
[398993697,1766051432727,-500.0,0.00021316,2]
[398993698,1766051432736,-500.0,0.00021316,2]
[398993699,1766051432745,-300.0,0.00021316,2]
[398993700,1766051432755,-1000.0,0.00021317,2]
[398993701,1766051432764,-3240.08279536,0.00021317,2]
[398993702,1766051432775,-11557.02987722,0.00021317,2]
[398993703,1766051432786,-787.27893922,0.00021317,2]
[398993704,1766051432796,-523.57458519,0.00021317,2]
[398993705,1766051432807,-482.13,0.00021317,2]
[398993708,1766051438289,-392.59463394,0.00021317,2]
[398993710,1766051438342,-2178.00072333,0.00021317,2]
[398993711,1766051438353,-8237.56949496,0.00021317,2]
[398993712,1766051438364,-484.27927677,0.00021317,2]
[398993713,1766051438502,-6173.24549921,0.00021317,2]
[398993714,1766051438514,-443.26536606,0.00021317,2]
[398993743,1766051440330,-34556.35591095,0.00021317,2]
[398993744,1766051440587,-360.11324534,0.00021317,2]
[398993745,1766051440599,-427.48819999,0.00021317,2]
[398993762,1766051443353,-908.811586,0.00021317,2]
[398993764,1766051443365,-19087.8778275,0.00021317,2]
[398993771,1766051446630,-331.20604989,0.00021317,2]
[398993851,1766052339693,-166.66,0.00024863,30]
[398993852,1766052339723,-166.66,0.00025387,30]
[398993853,1766052339752,-166.66,0.0002591,30]
[398993854,1766052339778,-166.66,0.00026433,30]
[398993855,1766052339803,-386.64,0.00026601,30]
[398993856,1766052339827,-1500.0,0.00026601,120]
[398993857,1766052339853,-166.66,0.00026957,30]
[398993858,1766052339880,-166.66,0.0002748,30]
[398993859,1766052339907,-386.64,0.00031436,30]
[398993860,1766052339932,-500.0,0.00032141,60]
[398993861,1766052339959,-500.0,0.000351,120]
[398993862,1766052339983,-97309.73455528,0.0003511,120]
[398993863,1766052340008,-151.0,0.0003511,31]
[398993864,1766052340032,-195.196737,0.0003511,31]
[398993865,1766052340056,-151.0,0.0003511,31]
[398993866,1766052340081,-3633.37717439,0.00035127,120]
[398993867,1766052340107,-476.1,0.00035616,56]
[398993868,1766052340133,-357.0,0.00035616,74]
[398993869,1766052340158,-312.0,0.00035616,86]
[398993870,1766052340183,-500.0,0.00035999,60]
[398993871,1766052340207,-197000.0,0.00036,60]
[398993872,1766052340233,-151.0,0.00036,31]
[398993873,1766052340257,-151.0,0.00036,31]
[398993874,1766052340285,-386.64,0.00036271,30]
[398993875,1766052340314,-6139.0,0.000378,117]
[398993876,1766052340345,-500.0,0.00039,120]
[398993877,1766052340370,-500.0,0.00039003,60]
[398993878,1766052340396,-150.0,0.00039726,120]
[398993879,1766052340421,-150.0,0.00039726,120]
[398993880,1766052340445,-300.0,0.00039945,120]
[398993881,1766052340470,-300.0,0.00039945,120]
[398993882,1766052340496,-5000.0,0.0004,60]
[398993883,1766052340520,-3000.0,0.0004,120]
[398993884,1766052340544,-3000.0,0.0004,120]
[398993885,1766052340568,-3000.0,0.0004,120]
[398993886,1766052340591,-3000.0,0.0004,120]
[398993887,1766052340616,-3000.0,0.0004,120]
[398993888,1766052340640,-3000.0,0.0004,120]
[398993889,1766052340664,-3000.0,0.0004,120]
[398993890,1766052340691,-3000.0,0.0004,120]
[398993891,1766052340716,-3000.0,0.0004,120]
[398993892,1766052340743,-3000.0,0.0004,120]
[398993893,1766052340768,-3000.0,0.0004,120]
[398993894,1766052340793,-3000.0,0.0004,120]
[398993895,1766052340818,-3000.0,0.0004,120]
[398993896,1766052340843,-1364.91,0.0004,120]
[398993897,1766052340868,-151.0,0.0004,120]
[398993898,1766052340892,-151.0,0.0004,66]
[398993899,1766052340916,-151.0,0.0004,66]
[398993900,1766052340941,-151.0,0.0004,66]
[398993901,1766052340966,-450.0,0.00040164,120]
[398993902,1766052340992,-450.0,0.00040164,120]
[398993903,1766052341018,-800.0,0.00040273,120]
[398993904,1766052341041,-800.0,0.00040273,120]
[398993905,1766052341066,-800.0,0.00040273,120]
[398993906,1766052341089,-800.0,0.00040273,120]
[398993907,1766052341113,-884.19974994,0.00040273,120]
[398993908,1766052341138,-500.0,0.00040382,60]
[398993909,1766052341163,-600.0,0.00040383,120]
[398993910,1766052341187,-600.0,0.00040383,120]
[398993911,1766052341211,-750.0,0.00040602,120]